{"text_format":"1","workbook":"xlsx","n_sheets":3,"sheets":["Käyttöohje","Laskuri","Palkkataulukot"],"not_rendered":{"charts":0,"images":29,"macros":1,"external_links":0,"defined_names":4,"comments":0,"pivot_tables":0},"unopened":[],"bounds":{"document_bytes":16777216,"sheet_cells":100000,"rows_first":2000,"rows_last":500,"rows_between":2000,"halvings":0,"cell_chars":16384,"cell_head_chars":4096},"cells_cut":0,"cells_raw":0,"read":"whole","date_system":"1900"}

{"sheet":"Käyttöohje","index":0,"n_rows":25,"n_cols":13,"rows_kept":25,"cut":false,"hidden":false,"merged":[[12,1,14,8]]}
[]
["Käyttöohje päätoimisen tuntiopettajan palkkalaskurille",null,null,null,null,null,null,null,null,null,"Sivistystyönantajat",null,"5/2018"]
[]
["Laskuri on ohjelmoitu VB (Visual Basic) -ohjelmointikielellä. Tarvitset sen käyttämiseen Microsoft Excel-ohjelman. "]
["Ohjelmassa täytyy olla asetettu makrojen käyttö sallituksi. Tarvittaessa sen saa asetettua valitsemalla Työkalut -> Makro -> Suojaus -> Normaali."]
[]
["Laskurissa pääset muuttamaan vihreällä pohjalla olevia kenttiä, oranssit kentät päivittyvät lopuksi."]
[]
["Näin toimit (käy jokainen kohta läpi):"]
["1. Valitse alasvetovalikoista nimike/tilastokoodi sekä lukion että peruskoulun osalta"]
["2. Valitse paikkakuntakalleusluokka"]
["3. Valitse alasvetovalikoista kokemuslisien määrät (vuosia)"]
[null,"HUOM! Jokaisesta alasvetovalikosta on valittava jokin lisien määrä. Mikäli kyseessä ei esimerkiksi ole steinerkoulun opettaja, valitse tällöin vastaavasta alasvetovalikosta lisien määräksi nolla!"]
[]
[]
["4. Syötä ko. opettajan lukiossa sekä peruskoulussa opettamien tuntien määrät",null,null,null,null,null,null,null,"HUOM! Mikäli Käytät desimaalierotinta, käytä sitä,  "]
[null,"Huomio lukiokerroin 1.1!",null,null,null,null,null,null,"joka omassa Excel-ohjelmassasi on asetettu "]
["5. Syötä sekä lukion että peruskoulun vastaavat opetusvelvollisuudet",null,null,null,null,null,null,null,"desimaalierottimeksi (pilkku tai piste)."]
["6. Paina lopuksi vihreää \"Laske / päivitä kentät\" -nappia"]
[]
["Saat tyhjennettyä kentät painamalla punaista nappia ja voit aloittaa alusta."]
[]
["Mikäli ohjelma ilmoittaa virheestä, kannattaa koko Excel sulkea ja avata laskuri uudelleen. Ole tarkka desimaalierottimen kanssa!"]
[]
["Laskuri löytyy alapalkista viereiseltä välilehdeltä."]

{"sheet":"Laskuri","index":1,"n_rows":86,"n_cols":31,"rows_kept":86,"cut":false,"hidden":false,"merged":[[0,3,0,4]]}
[null,"1-kl","2-kl","ylituntipalkkiokertoimet",null,null,null,null,null,null,null,null,null,null,null,null,null,null,null,null,null,"Laskuri lukiossa ja peruskoulussa opettavan päätoimisen tuntiopettajan palkan laskemiseksi"]
["012151 Lehtori ja opinto-ohjaaja(lukio) - Ylempi korkeakoulututkinto ja lukio-opetusta antavan opettajan kelpoisuus taikka aiempi vanhemman lehtorin kelpoisuus (51)",{"$f":"Palkkataulukot!D16","v":2975.64},{"$f":"Palkkataulukot!F16","v":2893.6},0.82099999999999995,0.84399999999999997,null,null,"kl_lukio_pk",null,"kl_steiner",null,"kl_opolehtorit","Lukio",null,null,"PK",null,null,null,null,null,"Sivistystyönantajat",null,"5/2018"]
["012150 Lehtori ja opinto-ohjaaja(lukio) - Perusopetusta antavan opettajan tai aiempi lukio-opetusta antavan opettajan kelpoisuus (50)",{"$f":"Palkkataulukot!D17","v":2860.96},{"$f":"Palkkataulukot!F17","v":2782.51},0.83099999999999996,0.85499999999999998,null,0,1,0,1,0,1,null,null,null,null,null,null,null,null,null,"Valitse alasvetovalikosta nimike/tilastokoodi, jonka mukaan lukion osa palkasta määräytyy"]
["012145 Lehtori ja opinto-ohjaaja(lukio) - Ylempi tai alempi korkeakoulututkinto (45)",{"$f":"Palkkataulukot!D18","v":2450.8200000000002},{"$f":"Palkkataulukot!F18","v":2391.98},0.86399999999999999,0.88500000000000001,null,3,1.06,5,1.06,3,1.05]
["012139 Lehtori ja opinto-ohjaaja(lukio) - Muu kuin edellä mainittu (39) ",{"$f":"Palkkataulukot!D19","v":2082.21},{"$f":"Palkkataulukot!F19","v":2035.16},0.90800000000000003,0.93,null,5,1.1235999999999999,7,1.1235999999999999,5,1.1025]
["012249 Lehtori (peruskoulu) - Ylempi korkeakoulututkinto ja perus-/lukio-opetusta  antavan opettajan kelpoisuus tai aiempi vanhemman lehtorin kelpoisuus (49)",{"$f":"Palkkataulukot!D22","v":2769.43},{"$f":"Palkkataulukot!F22","v":2695.21},0.83799999999999997,0.86099999999999999,null,8,1.2022520000000001,10,1.2022520000000001,8,1.1576249999999999,null,null,null,null,null,null,null,null,null,"Valitse alasvetovalikosta nimike/tilastokoodi, jonka mukaan peruskoulun osa palkasta määräytyy"]
["012248 Lehtori (peruskoulu) - Perusopetusta antavan opettajan tai aiempi peruskoulun/lukion opettajan kelpoisuus (48)",{"$f":"Palkkataulukot!D23","v":2654.76},{"$f":"Palkkataulukot!F23","v":2585.9499999999998},0.85199999999999998,0.875,null,13,1.2984321599999999,15,1.2984321599999999,13,1.21550625]
["012244 Lehtori (peruskoulu) - Ylempi korkeakoulututkinto (44)",{"$f":"Palkkataulukot!D24","v":2325.11},{"$f":"Palkkataulukot!F24","v":2269.98},0.89200000000000002,0.91300000000000003,null,20,1.3763380895999999,20,1.3763380895999999]
["012242 Lehtori (peruskoulu) - Alempi korkeakoulututkinto (42)",{"$f":"Palkkataulukot!D25","v":2217.31},{"$f":"Palkkataulukot!F25","v":2164.83},0.89900000000000002,0.92100000000000004,null,null,null,null,null,null,null,null,null,null,null,null,null,null,null,null,"Valitse paikkakuntakalleusluokka"]
["012239 Lehtori (peruskoulu) - Muu kuin edellä mainittu (39)",{"$f":"Palkkataulukot!D26","v":2082.21},{"$f":"Palkkataulukot!F26","v":2035.16},0.90800000000000003,0.93]
["012349 Erityisopettaja ja erityisluokanopettaja - Ylempi korkeakoulututkinto ja erityisopetusta antavan opettajan kelpoisuus (49)",{"$f":"Palkkataulukot!D29","v":2769.43},{"$f":"Palkkataulukot!F29","v":2695.21},0.83799999999999997,0.86099999999999999]
["012348 Erityisopettaja ja erityisluokanopettaja - Alempi korkeakoulututkinto ja erityisopetusta antavan opettajan kelpoisuus (48)",{"$f":"Palkkataulukot!D30","v":2654.76},{"$f":"Palkkataulukot!F30","v":2585.9499999999998},0.85199999999999998,0.875,null,null,null,null,null,null,null,null,null,null,null,null,null,null,null,null,"Valitse alasvetovalikosta lukion ja peruskoulun opettajan kokemuslisien määrä (vuosina)"]
["012347 Erityisopettaja ja erityisluokanopettaja - Erityisopetusta antavan opettajan kelpoisuus taikka ylempi korkeakoulututkinto ja perus-/lukio-opetusta antavan opettajan kelpoisuus (47)",{"$f":"Palkkataulukot!D31","v":2594.2399999999998},{"$f":"Palkkataulukot!F31","v":2529.21},0.85199999999999998,0.874,null,null,null,null,null,null,null,"Lukion peruspalkka",null,null,"Peruskoulun peruspalkka"]
["012346 Erityisopettaja ja erityisluokanopettaja - Perus-/lukio-opetusta antavan opettajan kelpoisuus (46)",{"$f":"Palkkataulukot!D32","v":2503.83},{"$f":"Palkkataulukot!F32","v":2442.1999999999998},0.86299999999999999,0.88500000000000001]
["012341 Erityisopettaja ja erityisluokanopettaja - Muu kuin edellä mainittu (41)",{"$f":"Palkkataulukot!D33","v":2174.9},{"$f":"Palkkataulukot!F33","v":2123.71},0.9,0.92200000000000004,null,null,null,null,null,null,null,null,null,null,null,null,null,null,null,null,"Valitse alasvetovalikosta steinerkoulun opettajan kokemuslisien määrä (vuosina)"]
["012341 Erityisopettaja ja erityisluokanopettaja - Jos vaikeimmin kehitysvammaisten opettajalla on soveltuva vähintään opistoasteinen tutkinto (41)",{"$f":"Palkkataulukot!D36","v":2174.9},{"$f":"Palkkataulukot!F36","v":2123.71},0.9,0.92200000000000004]
["012344 Erityisopettaja ja erityisluokanopettaja - ja jos hänellä on lisäksi 35 opintoviikon erityisopinnot (44), ",{"$f":"Palkkataulukot!D37","v":2325.11},{"$f":"Palkkataulukot!F37","v":2269.98},0.89200000000000002,0.91300000000000003,null,null,null,null,null,null,null,"Lukion palkka lisineen",null,null,"Peruskoulun palkka lisineen"]
["012449 Luokanopettaja - Ylempi korkeakoulututkinto, aineen opettajan kelpoisuus sekä perus-/lukio-opetusta antavan opettajan kelpoisuus (49)",{"$f":"Palkkataulukot!D40","v":2769.43},{"$f":"Palkkataulukot!F40","v":2695.21},0.83799999999999997,0.86099999999999999,null,null,null,null,null,null,null,null,null,null,null,null,null,null,null,null,"Valitse alasvetovalikosta oppilaanohjauksen lehtorin kokemuslisien määrä (vuosina)"]
["012448 Luokanopettaja - Aineenopettajan kelpoisuus ja perus/lukio-opetusta antavan opettajan kelpoisuus (48), ",{"$f":"Palkkataulukot!D41","v":2654.76},{"$f":"Palkkataulukot!F41","v":2585.9499999999998},0.85199999999999998,0.875]
["012446 Luokanopettaja - Perus/lukio-opetusta antavan opettajan kelpoisuus (46), ",{"$f":"Palkkataulukot!D42","v":2503.83},{"$f":"Palkkataulukot!F42","v":2442.1999999999998},0.86299999999999999,0.88500000000000001,null,null,null,null,null,null,null,"Lukio tunnit",null,null,"pk tunnit",null,"yht. tunnit"]
["012435 Luokanopettaja - Muu kuin edellä mainittu (35)",{"$f":"Palkkataulukot!D43","v":1943.12},{"$f":"Palkkataulukot!F43","v":1899.89},0.92500000000000004,0.94699999999999995,null,null,null,null,null,null,null,null,null,null,null,null,null,null,null,null,"Syötä lukiossa opetettavat tunnit",null,null,null,"Syötä peruskoulussa opetettavat tunnit"]
["015156 Oppilaan ohjauksen lehtori - määrävuosilisään oikeuttavaa aikaa alle 15 vuotta (56 - 59)",{"$f":"Palkkataulukot!D48","v":2887.94},{"$f":"Palkkataulukot!G48","v":2808.78},1,1]
["015159 Oppilaan ohjauksen lehtori - määrävuosilisään oikeuttavaa aikaa vähintään 15 vuotta (59 - 63)",{"$f":"Palkkataulukot!D49","v":3138.79},{"$f":"Palkkataulukot!G49","v":3052.71},1,1,null,null,null,null,null,null,null,"lukio opv",null,null,"pk opv"]
["015155 Oppilaan ohjauksen lehtori - määrävuosilisään oikeuttavaa aikaa alle 15 vuotta (55 - 58)",{"$f":"Palkkataulukot!D51","v":2822.67},{"$f":"Palkkataulukot!G51","v":2745.11},1,1,null,null,null,null,null,null,null,null,null,null,null,null,null,null,null,null,"Syötä lukion opetusvelvollisuus",null,null,null,"Syötä peruskoulun opetusvelvollisuus",null,null,null,null,"Opettavat tunnit yhteensä"]
["015158 Oppilaan ohjauksen lehtori - määrävuosilisään oikeuttavaa aikaa vähintään 15 vuotta (58 - 61)",{"$f":"Palkkataulukot!D52","v":3047.6},{"$f":"Palkkataulukot!G52","v":2963.59},1,1]
["015143 Oppilaan ohjauksen lehtori - määrävuosilisään oikeuttavaa aikaa alle 15 vuotta (43 - 50)",{"$f":"Palkkataulukot!D54","v":1976.18},{"$f":"Palkkataulukot!G54","v":1931.1},1,1,null,null,null,null,null,null,null,"lukio perustunnit",null,null,"pk perustunnit"]
["015146 Oppilaan ohjauksen lehtori - määrävuosilisään oikeuttavaa aikaa vähintään 15 vuotta (46 - 53)",{"$f":"Palkkataulukot!D55","v":2103.4899999999998},{"$f":"Palkkataulukot!G55","v":2051.69},1,1,null,null,null,null,null,null,null,null,null,null,null,null,null,null,null,null,"Lukion taulukkopalkka",null,null,null,"Peruskoulun taulukkopalkka"]
[]
[null,null,null,null,null,null,null,null,null,null,null,null,"lukio ylit.",null,null,"pk ylit."]
[null,null,null,null,null,null,null,null,null,null,null,null,null,null,null,null,null,null,null,null,null,"Lukion palkka lisineen",null,null,null,"Peruskoulun palkka lisineen"]
[]
[]
[null,null,null,null,null,null,null,null,null,null,null,null,"lukio osa palkasta",null,null,"pk osa palkasta",null,null,null,null,null,"Lukion \"perustunnit\"",null,null,null,"Peruskoulun \"perustunnit\""]
[]
[]
[null,null,null,null,null,null,null,null,null,null,null,null,"Ylit. Hinta",null,null,"Ylit. Hinta pk",null,null,null,null,null,"Lukion ylitunnit",null,null,null,"Peruskoulun ylitunnit"]
[]
[]
["Kenen peruspalkka otetaan lukioon","Kenen peruspalkka otetaan peruskouluun",null,null,null,null,null,null,null,null,null,null,null,null,null,null,null,null,null,null,null,"Lukion maksettava peruspalkka",null,null,null,"Peruskoulun maksettava peruspalkka"]
["012151 Lehtori ja opinto-ohjaaja(lukio) - Ylempi korkeakoulututkinto ja lukio-opetusta antavan opettajan kelpoisuus taikka aiempi vanhemman lehtorin kelpoisuus (51)","012151 Lehtori ja opinto-ohjaaja(lukio) - Ylempi korkeakoulututkinto ja lukio-opetusta antavan opettajan kelpoisuus taikka aiempi vanhemman lehtorin kelpoisuus (51)",null,null,null,null,null,null,null,null,null,null,"Lukio yhteensä",null,null,"Pk yhteensä"]
["Peruspalkka lukioon"]
[{"$f":"VLOOKUP(A40,A2:C27,B42,FALSE)","v":2975.64},{"$f":"IF(A44=TRUE,2,3)","v":2},null,"peruspalkka pk",{"$f":"VLOOKUP(B40,A2:E27,B42,FALSE)","v":2975.64},null,null,null,null,null,null,null,null,null,null,null,null,null,null,null,null,"Ylituntien hinta lukiossa",null,null,null,"Ylituntien hinta peruskoulussa"]
["Paikkakunta kalleusluokka 1"]
[true,null,null,null,null,null,null,null,null,null,null,null,"Maksetaan"]
["Kokemuslisät lukio ja pk",null,"Kerroin",null,null,null,null,null,null,null,null,null,null,null,null,null,null,null,null,null,null,"Lukio yhteensä",null,null,null,"Peruskoulu yhteensä"]
[" ",{"$f":"A46*1","v":{"$error":"#VALUE!"}},{"$f":"VLOOKUP(B46,G3:H8,2,FALSE)","v":{"$error":"#VALUE!"}}]
["Kokemuslisät steiner",null,"Kerroin"]
[" ",{"$f":"A48*1","v":{"$error":"#VALUE!"}},{"$f":"VLOOKUP(B48,I3:J8,2,FALSE)","v":{"$error":"#VALUE!"}},null,null,null,null,null,null,null,null,null,null,null,null,null,null,null,null,null,null,"Maksettava palkka"]
["Kokemuslisät oppilaanohjauksen lehtori",null,"Kerroin"]
[" ",{"$f":"A50*1","v":{"$error":"#VALUE!"}},{"$f":"VLOOKUP(B50,K3:L7,2,FALSE)","v":{"$error":"#VALUE!"}}]
["Lukion palkka lisineen",null,null,null,"Peruskoulun palkka lisineen"]
[{"$f":"A42*C46*C48*C50","v":{"$error":"#VALUE!"}},null,null,null,{"$f":"E42*C46*C48*C50","v":{"$error":"#VALUE!"}}]
[]
["Ylituntipalkkiokerroin lukioon",null,"Ylituntipalkkiokerroin peruskouluun"]
[{"$f":"VLOOKUP(A40,A2:E27,B42+2,FALSE)","v":0.82099999999999995},null,{"$f":"VLOOKUP(B40,A2:E27,B42+2,FALSE)","v":0.82099999999999995}]
[]
[]
[]
["Opetettavat tunnit lukiossa"]
[" ",{"$f":"A60*1","v":{"$error":"#VALUE!"}}]
["Opetettavat tunnit peruskoulussa"]
[" ",{"$f":"A62*1","v":{"$error":"#VALUE!"}}]
["Opetustunnit yhteensä"]
[{"$f":"B60+B62","v":{"$error":"#VALUE!"}}]
["Lukion todelliset perustunnit","Lukion laskennalliset perustunnit",null,"todelliset, jotka näkyy"]
[{"$f":"IF(B66>B60,B60,B66)","v":{"$error":"#VALUE!"}},{"$f":"ROUND(B60*B74/A64,0)","v":{"$error":"#VALUE!"}},null,{"$f":"A66*1","v":{"$error":"#VALUE!"}}]
["Pk:n todelliset perustunnit","Pk:n laskennalliset perustunnit",null,"todelliset, jotka näkyy"]
[{"$f":"IF(B68>B62,B62,B68)","v":{"$error":"#VALUE!"}},{"$f":"ROUND(B62*B76/A64,0)","v":{"$error":"#VALUE!"}},null,{"$f":"A68*1","v":{"$error":"#VALUE!"}}]
["Lukion ylitunnit",null,null,null,"todelliset, jotka näkyy"]
[{"$f":"B60-A66","v":{"$error":"#VALUE!"}},null,null,null,{"$f":"A70*1","v":{"$error":"#VALUE!"}}]
["Pk:n ylitunnit",null,null,null,"todelliset, jotka näkyy"]
[{"$f":"B62-A68","v":{"$error":"#VALUE!"}},null,null,null,{"$f":"A72*1","v":{"$error":"#VALUE!"}}]
["lukio opv"]
[" ",{"$f":"A74*1","v":{"$error":"#VALUE!"}}]
["pk opv"]
[" ",{"$f":"A76*1","v":{"$error":"#VALUE!"}}]
["Lukio osa palkasta"]
[{"$f":"ROUND((A66/B74)*A52,2)","v":{"$error":"#VALUE!"}}]
["Pk osa palkasta"]
[{"$f":"ROUND((A68/B76)*E52,2)","v":{"$error":"#VALUE!"}}]
["ylituntien hinta lukio",null,"ylituntien hinta pk"]
[{"$f":"ROUND(((A42*A55)/(B74-1.5))*E70,2)","v":{"$error":"#VALUE!"}},null,{"$f":"ROUND(((E42*C55)/(B76-1.5))*E72,2)","v":{"$error":"#VALUE!"}}]
["lukio yhteensä",null,"pk yhteensä"]
[{"$f":"ROUND(A82+A78,2)","v":{"$error":"#VALUE!"}},null,{"$f":"ROUND(A80+C82,2)","v":{"$error":"#VALUE!"}}]
["maksetaan"]
[{"$f":"ROUND(A84+C84,2)","v":{"$error":"#VALUE!"}}]

{"sheet":"Palkkataulukot","index":2,"n_rows":68,"n_cols":9,"rows_kept":68,"cut":false,"hidden":true,"merged":[[58,3,58,5],[58,6,58,8],[0,0,0,1],[5,3,5,5],[5,6,5,8],[46,3,46,5],[46,6,46,8]]}
["SIVISTYSTYÖNANTAJAT ry"]
["Opetushenkilöstön palkat  (muut kuin AMK)"]
[null,null,null,"1.5.2018 lukien"]
[]
["LUKIO-OPETUS JA PERUSOPETUS"]
["Tilastokoodi",null,null,"I kalleusluokka ",null,null,"II kalleusluokka "]
["011064","Peruskoulun rehtori (64 - 68)",null,3779.88,"-",4499.99,3675.79,"-",4376.03]
["011065","Lukion rehtori (65 - 70)",null,3940.06,"-",4941.76,3831.58,"-",4805.8]
[]
[null,null,null,"I kalleusluokka ",null,"II kalleusluokka "]
["011261","Johtaja (61)",null,3293.51,null,3202.96]
["011259","Johtaja (59)",null,3077.24,null,2992.86]
["011154","Apulaisjohtaja (54)",null,2530.0100000000002,null,2460.54]
[]
["1. Lehtori ja opinto-ohjaaja(lukio)",null,null,"I kalleusluokka ",null,"II kalleusluokka "]
["012151","a. Ylempi korkeakoulututkinto ja lukio-opetusta antavan \nopettajan kelpoisuus taikka aiempi vanhemman lehtorin kelpoisuus (51)",null,2975.64,null,2893.6]
["012150","b. Perusopetusta antavan opettajan tai aiempi lukio-opetusta \nantavan opettajan kelpoisuus (50)",null,2860.96,null,2782.51]
["012145","c. Ylempi tai alempi korkeakoulututkinto (45)",null,2450.8200000000002,null,2391.98]
["012139","d. Muu kuin edellä mainittu (39) ",null,2082.21,null,2035.16]
["                                                       "]
["2. Lehtori (peruskoulu)"]
["012249","a. Ylempi korkeakoulututkinto ja perus-/lukio-opetusta antavan\n opettajan kelpoisuus tai aiempi vanhemman lehtorin kelpoisuus (49)",null,2769.43,null,2695.21]
["012248","b. Perusopetusta antavan opettajan tai aiempi peruskoulun/lukion opettajan kelpoisuus (48)",null,2654.76,null,2585.9499999999998]
["012244","c. Ylempi korkeakoulututkinto (44)",null,2325.11,null,2269.98]
["012242","d. Alempi korkeakoulututkinto (42)",null,2217.31,null,2164.83]
["012239","e. Muu kuin edellä mainittu (39)",null,2082.21,null,2035.16]
[]
["3. Erityisopettaja ja erityisluokanopettaja"]
["012349","a. Ylempi korkeakoulututkinto ja erityisopetusta antavan opettajan kelpoisuus (49)",null,2769.43,null,2695.21]
["012348","b. Alempi korkeakoulututkinto ja erityisopetusta antavan opettajan kelpoisuus (48)",null,2654.76,null,2585.9499999999998]
["012347","c. Erityisopetusta antavan opettajan kelpoisuus taikka ylempi korkeakoulututkinto\n ja perus-/lukio-opetusta antavan opettajan kelpoisuus (47)",null,2594.2399999999998,null,2529.21]
["012346","d. Perus-/lukio-opetusta antavan opettajan kelpoisuus (46)",null,2503.83,null,2442.1999999999998]
["012341","e. Muu kuin edellä mainittu (41)",null,2174.9,null,2123.71]
[]
["f. Muita määräyksiä"]
["012341","Jos vaikeimmin kehitysvammaisten opettajalla on soveltuva\n  vähintään opistoasteinen tutkinto (41), on hänen peruspalkkansa",null,2174.9,null,2123.71]
["012344","ja jos hänellä on lisäksi 35 opintoviikon erityisopinnot (44), ",null,2325.11,null,2269.98]
[]
["4. Luokanopettaja"]
["012449","a. Ylempi korkeakoulututkinto, aineen opettajan kelpoisuus  sekä perus-/lukio-opetusta antavan opettajan kelpoisuus (49)",null,2769.43,null,2695.21]
["012448","b. Aineenopettajan kelpoisuus ja perus/lukio-opetusta antavan opettajan kelpoisuus (48), ",null,2654.76,null,2585.9499999999998]
["012446","c. Perus/lukio-opetusta antavan opettajan kelpoisuus (46), ",null,2503.83,null,2442.1999999999998]
["012435","d. Muu kuin edellä mainittu (35)",null,1943.12,null,1899.89]
[]
[]
["12 § Oppilaan ohjauksen lehtori"]
[null,"Ylempi korkeakoulututkinto ja perus-/lukio-opetusta antavan opettajan kelpoisuus taikka aiempi vanhemman lehtorin kelpoisuus ",null,"I kalleusluokka ",null,null,"II kalleusluokka "]
["015156","- määrävuosilisään oikeuttavaa aikaa alle 15 vuotta (56 - 59)",null,2887.94," -",3138.79,2808.78," -",3052.71]
["015159","- määrävuosilisään oikeuttavaa aikaa vähintään 15 vuotta (59 - 63)",null,3138.79," -",3632,3052.71," -",3532.04]
[null,"Perus-/lukio-opetusta antavan opettajan kelpoisuus"]
["015155","- määrävuosilisään oikeuttavaa aikaa alle 15 vuotta (55 - 58)",null,2822.67," -",3047.6,2745.11," -",2963.59]
["015158","- määrävuosilisään oikeuttavaa aikaa vähintään 15 vuotta (58 - 61)",null,3047.6," -",3359.37,2963.59," -",3267]
[null,"Muu kuin edellä mainittu"]
["015143","- määrävuosilisään oikeuttavaa aikaa alle 15 vuotta (43 - 50)",null,1976.18," -",2321.39,1931.1," -",2257.69]
["015146","- määrävuosilisään oikeuttavaa aikaa vähintään 15 vuotta (46 - 53)",null,2103.4899999999998," -",2512.52,2051.69," -",2443.5500000000002]
[]
[]
["AIKUISLUKIO JA LUKION AIKUISLINJA"]
[null,null,null,"I kalleusluokka ",null,null,"II kalleusluokka "]
["011065","Aikuislukion ja lukion aikuislinjan rehtori (65 - 70)",null,3940.06," -",4941.76,3831.58," -",4805.8]
[]
["1. Aikuislukion lehtori ",null,null,"I kalleusluokka ",null,"II kalleusluokka "]
["012151","a. Ylempi korkeakoulututkinto ja lukio-opetusta antavan opettajan kelpoisuus taikka aiempi vanhemman lehtorin kelpoisuus (51)",null,2975.64,null,2893.6]
["012150","b. Perusopetusta antavan opettajan tai aiempi lukio-opetusta antavan opettajan kelpoisuus (50)",null,2860.96,null,2782.51]
["012145","c. Ylempi tai alempi korkeakoulututkinto (45)",null,2450.8200000000002,null,2391.98]
["012139","d. Muu kuin edellä mainittu (39)",null,2082.21,null,2035.16]
[]
["                                                       "]